bitfinex-derivatives/quotes_ETHF0:USTF0_20250624
["timestamp","ask_amount","ask_price","bid_price","bid_amount"]
[1750733955448,1.95727,2391.9,2391.8,33.9218]
[1750733960259,1.12166,2391.9,2391.8,33.9218]
[1750733960858,1.84646,2391.9,2391.8,33.9218]
[1750733961358,0.7248,2391.9,2391.8,33.9218]
[1750733962958,2.15966,2392.1,2391.8,34.75744]
[1750733963264,1.12166,2392.0,2391.9,28.32701492]
[1750733963556,1.56032,2392.2,2391.9,29.86802492]
[1750733963752,1.56032,2392.2,2392.1,2.48401492]
[1750733964356,2.68198,2392.2,2392.1,2.48401492]
[1750733965249,1.84646,2392.2,2392.1,2.48401492]
[1750733965454,2.68196,2392.2,2392.1,2.48401492]
[1750733966858,2.68196,2392.2,2392.0,0.83556]
[1750733967157,1.12166,2392.1,2392.0,3.31957492]
[1750733967554,0.7248,2392.2,2392.0,3.31957492]
[1750733967751,1.12166,2392.1,2392.0,3.31957492]
[1750733968153,0.7248,2392.2,2392.1,0.83554]
[1750733968353,1.12166,2392.1,2392.0,2.48401492]
[1750733968757,0.7248,2392.2,2392.0,3.31957492]
[1750733968959,1.12166,2392.1,2392.0,3.31957492]
[1750733969358,1.56032,2392.2,2392.0,3.31957492]
[1750733969661,1.12166,2392.1,2392.0,3.31957492]
[1750733970055,1.56032,2392.2,2392.0,3.31957492]
[1750733970255,1.12166,2392.1,2392.0,3.31957492]
[1750733970763,1.56032,2392.2,2392.0,3.31957492]
[1750733971063,1.12166,2392.1,2392.0,3.31957492]
[1750733971463,1.56032,2392.2,2392.0,3.31957492]
[1750733971658,1.12166,2392.1,2392.0,3.31957492]
[1750733972160,1.56032,2392.2,2392.0,3.31957492]
[1750733972361,1.12166,2392.1,2392.0,3.31957492]
[1750733972864,1.56032,2392.2,2392.0,3.31957492]
[1750733973063,1.12166,2392.1,2392.0,3.31957492]
[1750733973363,1.9572,2392.1,2392.0,2.48401492]
[1750733973564,0.83554,2392.1,2392.0,2.48401492]
[1750733974065,1.56034,2392.2,2392.0,2.48401492]
[1750733974361,2.98526655,2392.1,2392.0,2.48401492]
[1750733974750,1.86360655,2392.1,2392.0,2.48401492]
[1750733975764,1.02806655,2392.1,2392.0,3.31958492]
[1750733975966,1.86360655,2392.1,2392.0,2.48401492]
[1750733976465,1e-08,2392.1,2392.0,8.31958492]
[1750733976665,3.2078,2392.4,2392.3,0.83547]
[1750733976862,0.6812,2392.6,2392.3,35.09901492]
[1750733977061,1.95708,2392.5,2392.3,35.09901492]
[1750733977256,1.95708,2392.5,2392.3,35.77041492]
[1750733978169,0.83543,2392.4,2392.3,32.615]
[1750733978368,2.17263,2392.4,2392.3,32.615]
[1750733978565,2.17265,2392.4,2392.2,3.2078]
[1750733978868,1.84666,2392.3,2392.2,6.789]
[1750733979163,1.84666,2392.3,2392.2,7.6245]
[1750733981364,0.6812,2392.6,2392.2,6.789]
[1750733981565,1.12166,2392.4,2392.3,3.31948492]
[1750733981867,1.12166,2392.4,2392.3,29.13648492]
[1750733982067,0.6812,2392.6,2392.4,0.83541]
[1750733982268,0.6812,2392.6,2392.5,0.8354]
[1750733982769,1.80286,2392.6,2392.5,0.8354]
[1750733983469,1.80286,2392.6,2392.5,3.31941492]
[1750733984066,3.9113,2392.7,2392.6,0.83536]
[1750733984369,5.03296,2392.7,2392.6,0.83536]
[1750733985971,5.8683,2392.7,2392.5,0.8354]
[1750733986173,2.44416,2392.6,2392.5,0.8354]
[1750733988576,3.46332708,2392.6,2392.5,0.8354]
[1750733994474,4.29868708,2392.6,2392.5,0.8354]
[1750733995172,3.46332708,2392.6,2392.5,0.8354]
[1750734000184,3.46332708,2392.6,2392.4,7.59941]
[1750734000487,3.58932708,2392.5,2392.4,7.59941]
[1750734000686,3.58932708,2392.5,2392.4,0.83541]
[1750734001080,4.42472708,2392.5,2392.4,0.83541]
[1750734001583,3.58932708,2392.5,2392.4,0.83541]
[1750734002779,1.01916708,2392.5,2392.4,0.83541]
[1750734002979,1.02020966,2392.5,2392.3,12.45581492]
[1750734003185,0.7035,2392.7,2392.3,13.88731492]
[1750734003390,1.12166,2392.5,2392.4,0.83543]
[1750734003590,2.14201774,2392.5,2392.4,0.83543]
[1750734003793,1.02035774,2392.5,2392.4,0.83543]
[1750734003987,1.02028917,2392.5,2392.4,0.83543]
[1750734004790,1.02028917,2392.5,2392.4,7.59943]
[1750734013406,1.02028917,2392.5,2392.4,9.60653]
[1750734013603,7.05626387,2393.1,2392.6,2.08839]
[1750734013801,7.05626387,2393.1,2392.7,34.08693]
[1750734013802,1.12166,2392.8,2392.7,34.08693]
[1750734014404,1.3772,2393.0,2392.9,0.83526]
[1750734014893,1.3772,2393.0,2392.8,0.83528]
[1750734014894,3.33411,2393.0,2392.8,0.83528]
[1750734015098,2.21245,2393.0,2392.8,0.83528]
[1750734015402,2.55386,2392.9,2392.8,0.83528]
[1750734019912,1.12166,2392.9,2392.8,0.83528]
[1750734020106,1.12166,2392.9,2392.8,1.53808]
[1750734020606,3.2078,2393.1,2393.0,0.83522]
[1750734021107,4.32946,2393.1,2393.0,0.83522]
[1750734021306,4.32946,2393.1,2392.7,32.535]
[1750734021508,1.12166,2392.9,2392.8,0.83529]
[1750734023911,1.3272,2393.0,2392.7,32.535]
[1750734024213,1.3272,2393.0,2392.9,0.83526]
[1750734024409,1.3272,2393.0,2392.7,32.535]
[1750734024612,1.12166,2392.9,2392.8,0.83529]
[1750734025014,2.16243,2393.0,2392.8,0.83529]
[1750734025316,1.12166,2392.9,2392.8,0.83529]
[1750734025514,2.54096,2392.9,2392.8,0.83529]
[1750734025707,1.4193,2392.9,2392.8,0.83529]
[1750734026520,2.25456,2392.9,2392.8,0.83529]
[1750734027213,1.4193,2392.9,2392.8,0.83529]
[1750734028420,2.1031,2392.9,2392.8,0.83529]
[1750734028908,2.1031,2392.9,2392.7,33.37032]
[1750734029112,2.93836,2392.9,2392.7,33.37032]
[1750734029818,1.01463272,2392.8,2392.7,33.37032]
[1750734030320,1.84992272,2392.8,2392.7,32.535]
[1750734030623,0.83533,2392.7,2392.6,3.6284]
[1750734030818,7.49772272,2392.7,2392.6,2.9256]
[1750734034515,6.66239272,2392.7,2392.6,3.76096]
[1750734035214,3.45459272,2392.7,2392.6,3.76096]
[1750734037519,4.28992272,2392.7,2392.6,2.9256]
[1750734038715,7.49772272,2392.7,2392.6,2.9256]
[1750734041326,4.28992272,2392.7,2392.6,2.9256]
[1750734041828,7.49772272,2392.7,2392.6,2.9256]
[1750734042730,6.66239272,2392.7,2392.6,3.76096]
[1750734043429,5.34409272,2392.7,2392.6,3.76096]
[1750734045639,6.17942272,2392.7,2392.6,2.9256]
[1750734045830,7.59422272,2392.7,2392.6,2.9256]
[1750734048027,10.07987053,2392.7,2392.6,2.9256]
[1750734048233,7.59422272,2392.7,2392.6,2.9256]
[1750734048634,10.07940297,2392.7,2392.6,2.9256]
[1750734049025,7.59422272,2392.7,2392.6,2.9256]
[1750734049425,10.0785006,2392.7,2392.6,2.9256]
[1750734050336,0.83543,2392.4,2392.3,2.09]
[1750734050533,2.97172272,2392.4,2392.3,2.09]
[1750734050833,0.83547,2392.3,2392.2,7.5745]
[1750734051028,5.11166272,2392.3,2392.2,7.5745]
[1750734051637,4.27619272,2392.3,2392.2,7.5745]
[1750734051933,5.11166272,2392.3,2392.1,0.83551]
[1750734052135,1.4245,2392.3,2392.2,0.8355]
[1750734052436,2.4353056,2392.3,2392.2,0.8355]
[1750734052637,3.5569656,2392.3,2392.2,0.8355]
[1750734052938,3.5569656,2392.3,2392.1,0.83552]
[1750734053139,1.4245,2392.3,2392.2,0.8355]
[1750734053338,2.43489664,2392.3,2392.2,0.8355]
[1750734053637,3.55655664,2392.3,2392.2,0.8355]
[1750734053937,4.39202664,2392.3,2392.1,0.83552]
[1750734054140,2.13205664,2392.2,2392.1,0.83552]
[1750734054531,1.01039664,2392.2,2392.1,0.83552]
[1750734056843,3.2078,2392.4,2392.1,2.48401492]
[1750734057038,3.2078,2392.4,2392.3,0.83547]
[1750734057345,3.2078,2392.7,2392.6,0.83537]
[1750734057844,4.32946,2392.7,2392.6,0.83537]
[1750734058039,4.32946,2392.7,2392.6,1.56177]
[1750734059039,2.48427788,2393.1,2393.0,0.8352]
[1750734059040,3.2078,2393.1,2393.0,0.8352]
[1750734059634,0.6662,2393.3,2393.0,0.8352]
[1750734059635,0.6662,2393.3,2393.2,0.83516]
[1750734059831,0.6662,2393.3,2393.1,0.83516]
[1750734060046,1.12166,2393.2,2393.1,0.83516]
[1750734060343,1.12166,2393.2,2393.1,0.83519]
[1750734060939,1.12166,2393.2,2393.0,0.7227]
[1750734060940,1.12166,2393.2,2393.0,1.5579]
[1750734061139,1.12166,2393.2,2393.1,24.73519]
[1750734063944,1.12166,2393.2,2393.1,23.9]
[1750734064546,1.12166,2393.2,2393.1,24.73519]
[1750734064746,1.12166,2393.2,2393.1,0.83519]
[1750734067247,0.83519,2393.1,2393.0,23.9]
[1750734067455,0.83524,2393.0,2392.7,7.5503]
[1750734067754,1.12166,2392.8,2392.7,7.5503]
[1750734067954,1.12166,2392.8,2392.7,31.4503]
[1750734070049,3.2078,2393.1,2393.0,0.83523]
[1750734070255,4.90630616,2393.1,2392.9,0.83524]
[1750734070455,1.00390616,2393.0,2392.9,0.83524]
[1750734070658,2.12556616,2393.0,2392.9,0.83524]
[1750734071355,4.36401616,2393.0,2392.8,0.8353]
[1750734071549,1.12166,2392.8,2392.7,31.4493]
[1750734071952,1.95696,2392.8,2392.7,30.614]
[1750734072156,3.62215742,2392.8,2392.6,7.54935]
[1750734072343,3.21946,2392.7,2392.6,7.54935]
[1750734072757,2.0978,2392.7,2392.6,7.54935]
[1750734075557,4.05479,2392.7,2392.6,7.54935]
[1750734076559,3.21946,2392.7,2392.6,7.54935]
[1750734079154,1.81626,2392.7,2392.6,7.54935]
[1750734079359,1.81626,2392.7,2392.6,31.44935]
[1750734079554,0.6615,2392.8,2392.6,30.614]
[1750734079754,3.868,2393.1,2393.0,0.83523]
[1750734079959,5.33161816,2393.1,2393.0,0.83523]
[1750734080160,2.12381816,2393.1,2393.0,0.83523]
[1750734080461,2.12381816,2393.1,2393.0,1.49743]
[1750734081863,2.12381816,2393.1,2393.0,0.6622]
[1750734082258,2.12381816,2393.1,2393.0,1.49743]
[1750734083966,0.6602,2393.6,2393.0,0.6622]
[1750734084265,1.12166,2393.3,2393.2,0.83516]
[1750734084465,1.12166,2393.3,2393.2,7.52716]
[1750734084669,1.3668,2393.6,2393.5,0.83505]
[1750734085058,1.3668,2393.6,2393.4,0.83506]
[1750734085455,1.12166,2393.5,2393.4,0.83506]
[1750734086167,1.95672,2393.5,2393.3,0.8351]
[1750734086366,1.12166,2393.4,2393.3,0.8351]
[1750734092068,1.12166,2393.4,2393.2,7.7366]
[1750734092268,1.12166,2393.3,2393.2,8.57176]
[1750734092464,2.14875,2393.5,2393.2,7.7366]
[1750734092666,1.12166,2393.3,2393.2,8.57176]
[1750734093163,2.14875,2393.5,2393.3,0.83509]
[1750734093562,1.12166,2393.4,2393.3,0.83509]
[1750734093962,2.20184,2393.6,2393.2,9.17601492]
[1750734094162,1.12166,2393.4,2393.3,0.83511]
[1750734094563,0.83505,2393.5,2393.3,0.83511]
[1750734094765,1.12166,2393.4,2393.3,0.83511]
[1750734095168,1.12166,2393.4,2393.2,9.17601492]
[1750734095169,1.95675,2393.4,2393.2,10.01114492]
[1750734095469,0.83509,2393.4,2393.2,10.01114492]
[1750734096173,0.83507,2393.5,2393.3,0.83512]
[1750734096373,2.118354,2393.4,2393.3,0.83512]
[1750734096970,1.831784,2393.4,2393.2,10.01114492]
[1750734097172,0.83509,2393.4,2393.2,10.01114492]
[1750734097768,0.83509,2393.4,2393.3,0.83512]
[1750734097971,1.8316643,2393.5,2393.3,0.83512]
[1750734098169,2.1182443,2393.4,2393.3,0.83512]
[1750734098569,0.9965843,2393.4,2393.3,0.83512]
[1750734098765,1.3668,2393.6,2393.2,9.17601492]
[1750734099074,1.12166,2393.5,2393.4,3.31910492]
[1750734099274,1.12166,2393.5,2393.4,35.66110492]
[1750734099474,1.3668,2393.6,2393.5,0.83505]
[1750734099675,2.36448201,2393.6,2393.5,0.83505]
[1750734099876,3.48614201,2393.6,2393.5,0.83505]
[1750734100279,4.32116201,2393.6,2393.5,0.83505]
[1750734100467,3.48614201,2393.6,2393.5,0.83505]
[1750734101073,0.99768201,2393.6,2393.5,0.83505]
[1750734101371,3.8751,2394.0,2393.4,38.03381492]
[1750734101676,4.5837,2394.0,2393.9,2.48401492]
[1750734101875,5.58359827,2394.0,2393.9,3.31892492]
[1750734102072,6.70525827,2394.0,2393.9,3.31892492]
[1750734102272,5.32935827,2394.0,2393.9,3.31892492]
[1750734102764,1.12166,2394.0,2393.9,3.31892492]
[1750734103173,1.4167,2394.2,2394.1,0.83484]
[1750734103372,2.41301133,2394.2,2394.1,3.31885492]
[1750734103576,1.3803,2394.3,2394.2,0.83481]
[1750734103776,2.37629926,2394.3,2394.2,0.83481]
[1750734103978,1.70459926,2394.3,2394.2,0.83481]
[1750734104175,0.7086,2394.3,2394.2,0.83481]
[1750734104778,3.2078,2394.4,2394.3,0.83477]
[1750734104967,3.2078,2394.4,2394.3,10.00878492]
[1750734105171,4.32946,2394.4,2394.3,10.00878492]
[1750734105378,1.12166,2394.4,2394.3,10.00878492]
[1750734105578,1.9564,2394.4,2394.3,9.17401492]
[1750734105777,3.3582,2394.4,2394.3,6.69]
[1750734106375,2.52346,2394.4,2394.3,7.52477]
[1750734107480,1.12166,2394.4,2394.3,7.52477]
[1750734108583,1.12166,2394.4,2394.3,10.00878492]
[1750734110583,1.12166,2394.4,2394.3,35.64278492]
[1750734111385,1.12166,2394.4,2394.3,32.324]
[1750734111583,1.12166,2394.4,2394.3,33.15877]
[1750734116489,1.12166,2394.4,2394.3,35.64278492]
[1750734119786,1.12166,2394.4,2394.1,57.02183]
[1750734119787,0.83479,2394.3,2394.1,57.02183]
[1750734119991,0.83479,2394.3,2394.1,57.02184]
[1750734119992,1.12166,2394.2,2394.1,57.02184]
[1750734120191,1.82556,2394.2,2394.1,57.02184]
[1750734120389,3.32397,2394.2,2394.1,32.287]
[1750734120589,4.76797,2394.2,2394.0,4.04265]
[1750734120785,2.56566,2394.1,2394.0,27.94265]
[1750734121188,2.56566,2394.1,2394.0,60.22665]
[1750734123588,2.56566,2394.1,2393.8,4.6849]
[1750734123589,0.83491,2393.9,2393.8,3.9685]
[1750734123789,4.44058492,2393.9,2393.8,3.9685]
[1750734123982,10.43491583,2393.9,2393.8,3.9685]
[1750734124186,11.83021583,2393.9,2393.8,3.9685]
[1750734124687,11.83051842,2393.9,2393.8,3.9685]
[1750734126391,9.3465035,2393.9,2393.8,3.9685]
[1750734127496,4.3465035,2393.9,2393.8,3.9685]
[1750734129697,6.83051842,2393.9,2393.8,3.9685]
[1750734130208,1.95664,2393.7,2393.6,0.80509796]
[1750734130394,0.83512,2393.3,2393.2,3.3428]
[1750734130588,6.84349696,2393.3,2393.2,3.3428]
[1750734130804,12.83813046,2393.3,2393.2,3.3428]
[1750734130994,14.95453046,2393.3,2393.2,3.3428]
[1750734131192,16.50002909,2393.3,2392.3,23.9]
[1750734131391,1.15198204,2392.5,2392.2,3.31950492]
[1750734131801,1.15198204,2392.5,2392.2,27.21950492]
[1750734132104,4.04317,2392.6,2392.4,0.83543]
[1750734132309,0.31656204,2392.5,2392.3,2.91605]
[1750734132600,0.31656204,2392.5,2392.4,0.83544]
[1750734132803,4.04317,2392.6,2392.4,0.83544]
[1750734132996,0.31656204,2392.5,2392.4,0.83544]
[1750734133502,0.83537,2392.6,2392.4,2.48401492]
[1750734133704,0.31656204,2392.5,2392.4,2.48401492]
[1750734134199,3.2078,2392.9,2392.4,2.48401492]
[1750734134396,0.31656204,2392.5,2392.4,1.4097]
[1750734134598,3.52436204,2392.5,2392.3,7.3823]
[1750734134809,3.2078,2392.5,2392.3,8.21776]
[1750734135010,0.83539,2392.6,2392.3,8.21776]
[1750734135197,0.31656204,2392.5,2392.3,8.21776]
[1750734135400,0.31656204,2392.5,2392.3,9.62746]
[1750734135700,0.83539,2392.6,2392.3,9.62746]
[1750734135899,2.0146,2392.9,2392.3,9.62746]
[1750734135900,0.83544,2392.4,2392.3,8.792]
[1750734136101,1.15200204,2392.4,2392.3,6.669]
[1750734136897,0.31656204,2392.4,2392.3,6.669]
[1750734137098,1.15200204,2392.4,2392.3,6.669]
[1750734138408,0.31656204,2392.4,2392.3,6.669]
[1750734138803,1.15200204,2392.4,2392.3,6.669]
[1750734139698,1.81350204,2392.4,2392.3,6.669]
[1750734141809,1.81350204,2392.4,2392.2,1.0222]
[1750734141810,0.83547,2392.3,2392.2,1.0222]
[1750734142113,0.83547,2392.3,2392.1,7.7132]
[1750734142114,0.31656204,2392.3,2392.1,9.48341492]
[1750734142416,1.15205204,2392.3,2392.1,10.92141492]
[1750734142608,1.15205204,2392.3,2392.2,0.7063]
[1750734143114,0.31656204,2392.3,2392.2,1.5418]
[1750734143314,4.04321,2392.5,2392.2,1.5418]
[1750734143513,4.04321,2392.5,2392.3,1.3441]
[1750734144015,1.15200204,2392.4,2392.3,1.3441]
[1750734144613,0.31656204,2392.4,2392.3,2.17957]
[1750734144913,0.31656204,2392.4,2392.3,4.66358492]
[1750734145114,0.31656204,2392.4,2392.3,3.82811492]
[1750734146109,3.2078,2392.5,2392.4,0.83544]
[1750734146414,3.2078,2392.5,2392.4,2.19684]
[1750734147913,0.83537,2392.6,2392.4,1.3614]
[1750734148217,1.15193204,2392.6,2392.4,2.19681]
[1750734148411,0.83537,2392.6,2392.5,0.7238]
[1750734148609,0.83537,2392.6,2392.5,2.0852]
[1750734148807,0.83535,2392.7,2392.5,2.9206]
[1750734149015,0.31656204,2392.6,2392.5,5.40461492]
[1750734149204,0.31656204,2392.6,2392.5,4.04321492]
[1750734149408,0.83534,2392.7,2392.5,1.55919]
[1750734149710,0.31656204,2392.7,2392.6,3.31936492]
[1750734150915,4.04308,2392.9,2392.6,3.31936492]
[1750734151116,0.31656204,2392.8,2392.6,3.31936492]
[1750734151316,4.35964204,2392.9,2392.6,9.97236492]
[1750734151819,0.8353,2392.8,2392.6,9.97236492]
[1750734153822,3.2078,2392.9,2392.6,9.13701492]
[1750734154015,2.14893058,2392.8,2392.6,9.13701492]
[1750734154311,2.14893058,2392.8,2392.6,9.97237492]
[1750734154312,0.31656204,2392.8,2392.6,9.97237492]
[1750734154513,4.04308,2392.9,2392.6,9.97237492]
[1750734154714,1.31401749,2392.8,2392.6,9.97237492]
[1750734154914,0.31656204,2392.8,2392.7,0.83533]
[1750734155123,3.2078,2392.9,2392.8,0.8353]
[1750734155431,3.2078,2392.9,2392.8,3.31931492]
[1750734157730,0.83516,2393.2,2392.9,0.83523]
[1750734157929,0.31656204,2393.0,2392.9,7.48823]
[1750734158130,1.31540976,2393.0,2392.9,7.48823]
[1750734158332,0.99884772,2393.0,2392.9,7.48823]
[1750734162025,1.69484772,2393.0,2392.9,7.48823]
[1750734170439,2.01140976,2393.0,2392.9,7.48823]
[1750734170735,1.69484772,2393.0,2392.9,7.48823]
[1750734170938,0.99884772,2393.0,2392.9,7.48823]
[1750734171135,0.99884772,2393.0,2392.9,8.84413]
[1750734173142,0.99884772,2393.0,2392.9,7.48823]
[1750734180351,0.99884772,2393.0,2392.9,9.97224492]
[1750734182953,3.2078,2393.8,2393.7,0.83498]
[1750734183252,0.83484,2394.1,2393.9,0.8349]
[1750734183548,0.83484,2394.1,2393.7,6.637]
[1750734183549,0.31656204,2394.0,2393.8,3.98023492]
[1750734183754,0.98276204,2394.0,2393.9,0.83491]
[1750734183955,0.6662,2394.0,2393.9,0.83491]
[1750734184553,3.2078,2394.2,2394.1,0.83484]
[1750734184948,3.52436204,2394.2,2394.1,0.83484]
[1750734185151,3.52436204,2394.2,2394.0,9.95586492]
[1750734185352,0.31656204,2394.1,2394.0,9.95586492]
[1750734187254,3.2078,2394.2,2394.0,9.95586492]
[1750734187455,0.31656204,2394.1,2394.0,9.95586492]
[1750734188153,0.38031354,2394.1,2394.0,6.637]
[1750734188353,1.79081354,2394.1,2393.9,3.75889]
[1750734188558,1.15144204,2394.0,2393.9,2.924]
[1750734188746,1.72706204,2394.0,2393.9,2.924]
[1750734188950,0.31656204,2394.0,2393.9,2.924]
[1750734189153,0.31656204,2394.0,2393.9,3.75891]
[1750734189552,3.2078,2394.2,2393.9,2.924]
[1750734189854,0.31656204,2394.1,2394.0,28.88389492]
[1750734190158,3.2078,2394.5,2394.4,0.83474]
[1750734190357,3.2078,2394.5,2394.4,9.95475492]
[1750734190554,3.52436204,2394.5,2394.4,9.95475492]
[1750734191955,3.52436204,2394.5,2394.4,10.68315492]
[1750734192160,3.52436204,2394.5,2394.4,12.07845492]
[1750734192458,3.52436204,2394.5,2394.4,10.68315492]
[1750734192960,3.52436204,2394.5,2394.4,12.07845492]
[1750734193163,3.52436204,2394.5,2394.4,9.95475492]
[1750734193965,3.52436204,2394.5,2394.4,35.51375492]
[1750734194261,3.52436204,2394.5,2394.4,35.51075492]
[1750734194465,3.52436204,2394.5,2394.4,34.67601492]
[1750734194763,3.52436204,2394.5,2394.4,3.31875492]
[1750734194971,3.52436204,2394.5,2394.4,35.51075492]
[1750734195362,3.52436204,2394.5,2394.3,1.022]
[1750734195562,0.83488,2394.0,2393.9,2.924]
[1750734195865,5.34563318,2394.0,2393.9,2.81414228]
[1750734196064,8.15763318,2394.0,2393.9,2.81414228]
[1750734199267,8.22138468,2394.0,2393.9,2.81414228]
[1750734199966,4.96091354,2394.0,2393.9,2.81414228]
[1750734200161,0.0637515,2394.0,2393.9,9.44914228]
[1750734200365,0.83485,2394.1,2393.9,9.44914228]
[1750734200667,1.15141204,2394.1,2393.9,9.44914228]
[1750734200968,0.83485,2394.1,2393.9,9.44914228]
[1750734201357,3.2078,2394.3,2393.9,15.28405228]
[1750734201562,3.31419709,2395.0,2394.2,3.31879492]
[1750734201563,4.04249,2394.6,2394.2,3.31879492]
[1750734201758,3.52436204,2394.6,2394.4,2.48401492]
[1750734201964,3.52436204,2394.6,2394.4,3.31874492]
[1750734202165,3.52436204,2394.6,2394.4,26.38401492]
[1750734202365,3.52436204,2394.6,2394.4,28.54964492]
[1750734202972,3.52436204,2394.6,2394.4,27.71491492]
[1750734203175,4.35904204,2394.6,2394.4,27.71491492]
[1750734203778,3.52436204,2394.6,2394.4,28.54965492]
[1750734204072,3.2078,2394.6,2394.5,0.8347]
[1750734204477,3.2078,2394.6,2394.5,2.8838]
[1750734206273,0.6681,2394.8,2394.6,0.83465]
[1750734206474,1.5027,2394.8,2394.7,6.623]
[1750734206869,1.81926204,2394.8,2394.7,6.623]
[1750734209784,0.83491,2393.9,2393.8,3.2781485]
[1750734209980,0.83491,2393.9,2393.5,0.729]
[1750734209981,0.83502,2393.6,2393.5,0.729]
[1750734210278,6.68088368,2393.6,2392.9,6.622]
[1750734210480,3.2078,2393.0,2392.7,2.0924]
[1750734210678,3.2078,2393.0,2392.8,9.10601492]
[1750734211076,3.2078,2393.0,2392.8,9.94129492]
[1750734211281,3.2078,2393.0,2392.9,1.3962]
[1750734211773,3.2078,2393.0,2392.8,9.10601492]
[1750734212081,3.2078,2393.0,2392.8,11.33750492]
[1750734212272,3.2078,2393.0,2392.8,8.0182]
[1750734212879,3.2078,2393.0,2392.7,2.3134]
[1750734212880,0.8353,2392.8,2392.7,2.3134]
[1750734213281,0.8353,2392.8,2392.7,8.9364]
[1750734213784,0.8353,2392.8,2392.7,2.3134]
[1750734213983,0.8353,2392.8,2392.7,8.9364]
[1750734216288,0.8353,2392.8,2392.7,8.9374]
[1750734218592,0.8353,2392.8,2392.7,8.2412]
[1750734219286,0.8353,2392.8,2392.7,1.6172]
[1750734222291,3.2715515,2393.0,2392.7,1.6172]
[1750734222493,4.57926474,2393.6,2392.7,1.6172]
[1750734222494,0.83508,2393.5,2392.9,7.91314696]
[1750734222696,0.83512,2393.3,2393.2,3.2078]
[1750734222992,0.83511,2393.4,2393.2,6.625]
[1750734225384,0.83507,2393.5,2393.2,7.46015]
[1750734225592,0.83509,2393.4,2393.3,1.3835]
[1750734228492,0.83512,2393.3,2393.2,6.625]
[1750734229683,0.83511,2393.4,2393.2,6.625]
[1750734229991,0.8988615,2393.4,2393.2,6.625]
[1750734230393,0.83512,2393.3,2393.2,6.625]
[1750734230891,0.8988615,2393.4,2393.2,6.625]
[1750734231693,0.83512,2393.3,2393.2,6.625]
[1750734232792,0.8988615,2393.4,2393.2,6.625]
[1750734232992,0.83512,2393.3,2393.2,6.625]
[1750734233896,0.8988615,2393.4,2393.2,6.625]
[1750734234094,0.8988615,2393.4,2393.2,8.0158]
[1750734234297,0.83512,2393.3,2393.2,8.0158]
[1750734235091,0.8988615,2393.4,2393.2,8.0158]
[1750734235693,0.0637515,2393.4,2393.3,0.83512]
[1750734235993,0.0637515,2393.4,2393.3,2.89522]
[1750734236196,0.0637515,2393.4,2393.3,2.0601]
[1750734236399,0.8988415,2393.4,2393.3,2.0601]
[1750734237902,0.0637515,2393.4,2393.3,2.89522]
[1750734238393,0.0637515,2393.4,2393.3,2.0601]
[1750734239287,1.06793734,2393.4,2393.3,2.0601]
[1750734240196,1.90302734,2393.4,2393.3,2.0601]
[1750734241903,1.90302734,2393.4,2393.3,0.6693]
[1750734242100,1.06793734,2393.4,2393.3,0.6693]
[1750734242295,1.06793734,2393.4,2393.3,1.50442]
[1750734242503,1.06793734,2393.4,2393.3,2.95222]
[1750734244095,1.00418584,2393.4,2393.3,2.95222]
[1750734244305,3.2078,2394.0,2393.6,0.835]
[1750734244504,1.00359631,2393.9,2393.7,7.4228]
[1750734244706,1.00359631,2393.8,2393.7,7.4228]
[1750734244908,1.83854631,2393.8,2393.7,7.4228]
[1750734247210,1.83854631,2393.8,2393.7,6.734]
[1750734247410,3.22484631,2393.8,2393.7,6.734]
[1750734252227,1.83854631,2393.8,2393.7,6.734]
[1750734253219,3.28914631,2393.8,2393.7,6.734]
[1750734254318,0.83498,2393.7,2393.6,8.3498]
[1750734254524,1.83857631,2393.7,2393.6,8.3498]
[1750734255721,0.83498,2393.7,2393.6,8.3498]
[1750734255922,1.84024758,2393.7,2393.6,8.3498]
[1750734257721,1.00526758,2393.7,2393.6,9.18482]
[1750734258429,1.00526758,2393.7,2393.6,10.62072]
[1750734258929,1.00526758,2393.7,2393.6,9.7857]
[1750734259818,1.84024758,2393.7,2393.6,1.6168]
[1750734260021,1.00526758,2393.7,2393.6,9.18482]
[1750734260222,1.06901908,2393.7,2393.6,9.18482]
[1750734260526,1.06868161,2393.7,2393.6,9.18482]
[1750734261027,1.06868161,2393.7,2393.6,8.3498]
[1750734261230,1.06868161,2393.7,2393.6,9.18482]
[1750734261727,1.06868161,2393.7,2393.6,10.64242]
[1750734263329,1.06859244,2393.7,2393.6,10.64242]
[1750734264222,0.0637515,2393.7,2393.6,10.64242]
[1750734264425,1.06826555,2393.7,2393.6,10.64242]
[1750734265135,0.0637515,2393.7,2393.6,10.64242]
[1750734271630,0.0637515,2393.7,2393.6,9.02562]
[1750734273937,0.0637515,2393.7,2393.6,8.1906]
[1750734274244,0.83505,2393.5,2393.4,10.5931]
[1750734274545,0.83505,2393.5,2393.4,0.7023]
[1750734274742,1.83955175,2393.5,2393.4,0.7023]
[1750734275045,3.19985175,2393.5,2393.4,0.7023]
[1750734277740,0.83512,2393.4,2393.2,6.683]
[1750734278044,1.00450175,2393.3,2393.2,6.683]
[1750734278344,1.83962175,2393.3,2393.2,6.683]
[1750734280252,0.83516,2393.2,2393.1,0.5782]
[1750734280451,3.78196175,2393.2,2393.1,0.5782]
[1750734281443,10.43470813,2393.2,2392.6,6.684]
[1750734281639,3.2078,2393.0,2392.6,7.3405]
[1750734281845,0.83533,2392.7,2392.6,7.3405]
[1750734283449,0.83533,2392.7,2392.6,6.684]
[1750734283848,0.83536,2392.6,2392.5,3.2078]
[1750734284152,0.83547,2392.3,2392.2,10.579]
[1750734284544,0.83547,2392.3,2392.2,7.3712]
[1750734284941,0.83554,2392.1,2392.0,0.7193]
[1750734285341,0.83554,2392.1,2392.0,7.4033]
[1750734286854,0.83554,2392.1,2392.0,9.0221]
[1750734287553,0.83554,2392.1,2392.0,11.51000638]
[1750734288846,0.83552,2392.2,2392.0,12.34557638]
[1750734289046,2.08842,2392.6,2392.1,2.48790638]